Cogmind - Beta 16 @@@ ROGUE MODE // 2025.12.22 @ 13:11:53 // Winter2019/RPGLIKE Player: Gallgagger Result: Destroyed by H-66 Slayer with Gauss Rifle Performance ------------- Evolutions (5) 2500 Regions Visited (16) 3200 Robots Destroyed (708) 3540 Value Destroyed (30619) 30619 Prototype IDs (64) 1280 Alien Tech Used (0) 0 Bonus (16839) 16839 TOTAL SCORE: 57978 Bonus ------- Triggered High Security 500 High Alert Combat Kills 9893 Follower Combat Kills 523 Aligned with FarCom 300 MAIN.C Attacked Warlord 500 Warlord Defense Kills 5340 Friendly Fire -217 Cogmind --------- Core Integrity 0/900 Matter 396/400 Energy 218/240 System Corruption 8% Temperature Cool (0) Movement Hovering (36) Location -5/Warlord Parts ------- > --- POWER (2) -------- Light Neutrino Core Light Neutrino Core > --- PROPULSION (5) --- Improved Airjet Improved Airjet Improved Airjet Antigrav System Cooled Gravmag System > --- UTILITY (9) ------ Armored Scrap Engine Experimental Signal Interpreter 0b10 Alert Chip Improved Armor Integrity Analyzer Quantum Capacitor Centrium Medium Armor Plating Graphene Brace > --- WEAPON (4) ------- Burst Zero Autocannon Construct/C > --- INVENTORY (6) ---- Advanced Weapon Cycler RU-N14's Throwing Claymores v3 (4) RU-N14's Throwing Claymores v3 (2) RU-N14's Throwing Claymores v3 (5) RU-N14's Throwing Claymores v3 (4) Peak State ------------ > --- POWER ------------ Light Neutrino Core Light Neutrino Core > --- PROPULSION ------- Improved Airjet Improved Airjet Improved Airjet Antigrav System Cooled Gravmag System > --- UTILITY ---------- Armored Scrap Engine Experimental Signal Interpreter 0b10 Alert Chip Improved Armor Integrity Analyzer Quantum Capacitor Centrium Medium Armor Plating Graphene Brace > --- WEAPON ----------- Vortex Catalyst Activator Burst Zero Autocannon Construct/C > --- INVENTORY -------- Protomatter Advanced Weapon Cycler RU-N14's Throwing Claymores v3 RU-N14's Throwing Claymores v3 RU-N14's Throwing Claymores v3 RU-N14's Throwing Claymores v3 [Rating: 147] Favorites ----------- Power Cooled Ion Engine Engine Cooled Ion Engine Power Core Light Neutrino Core Propulsion Improved Airjet Wheel Compact Wheel Hover Unit Improved Airjet Utility Seismic Detector Device Seismic Detector Storage High-capacity Matter Pod Processor 0b10 Alert Chip Protection Hardened Medium Armor Plating Weapon Enhanced Autogun Energy Gun Heavy Gatling Laser Energy Cannon Constructs Ballistic Gun Enhanced Autogun Ballistic Cannon Bore Cannon Launcher Improved Concussive RPG Special Weapon RU-N14's Throwing Claymores v3 Build | -11 -10 -10 -9 -9 -9 -8 -8 -7 -7 -7 -7 -7 -5 -5 -5 -5 ------- Run | Yrd Mat Min Mat Min Exi Min Mat Fac Was Fac Sto Rec Fac Upp Upp War Slots Evolved 16 | 3 1 2 4 . . 1 1 1 . 1 . . 2 . . . Power 1 | . . . 1 . . . . . . . . . . . . . Propulsion 4 | 1 . 1 . . . . 1 . . . . . 1 . . . Utility 8 | 1 1 1 2 . . 1 . 1 . . . . 1 . . . Weapon 3 | 1 . . 1 . . . . . . 1 . . . . . . Parts Attached 99 | 7 5 2 22 . 2 1 6 9 1 3 12 4 12 . . 13 Power 13 | 1 2 . 6 . 1 . . . . . 1 . 2 . . . Engine 6 | 1 . . 5 . . . . . . . . . . . . . Core 7 | . 2 . 1 . 1 . . . . . 1 . 2 . . . Reactor . | . . . . . . . . . . . . . . . . . Propulsion 18 | 2 2 1 3 . . . 4 3 . . 1 . 2 . . . Treads . | . . . . . . . . . . . . . . . . . Leg . | . . . . . . . . . . . . . . . . . Wheel 2 | 2 . . . . . . . . . . . . . . . . Hover 16 | . 2 1 3 . . . 4 3 . . 1 . 2 . . . Flight . | . . . . . . . . . . . . . . . . . Utility 28 | 2 1 . 5 . 1 1 2 1 1 1 . 3 2 . . 8 Device 14 | 2 1 . 2 . 1 . 1 . 1 . . 1 2 . . 3 Storage 2 | . . . 1 . . . . . . . . . . . . 1 Processor 6 | . . . . . . . . 1 . 1 . 2 . . . 2 Hackware . | . . . . . . . . . . . . . . . . . Protection 6 | . . . 2 . . 1 1 . . . . . . . . 2 Artifact . | . . . . . . . . . . . . . . . . . Weapon 40 | 2 . 1 8 . . . . 5 . 2 10 1 6 . . 5 Energy Gun 10 | . . . . . . . . 1 . . 6 1 1 . . 1 Energy Cannon 6 | . . . 1 . . . . . . . 1 . 3 . . 1 Ballistic Gun 14 | 2 . . 6 . . . . 4 . 1 . . 1 . . . Ballistic Cannon 4 | . . . 1 . . . . . . 1 1 . . . . 1 Launcher 5 | . . 1 . . . . . . . . 2 . 1 . . 1 Special Weapon 1 | . . . . . . . . . . . . . . . . 1 Impact Weapon . | . . . . . . . . . . . . . . . . . Slashing Weapon . | . . . . . . . . . . . . . . . . . Piercing Weapon . | . . . . . . . . . . . . . . . . . Special Melee Weapon . | . . . . . . . . . . . . . . . . . Unidentified Prototypes 37 | . . . 3 . . . 1 3 . 2 11 1 7 . . 9 Parts Lost 4 | . . . . . . 1 . . . . . 1 1 . . 1 Power . | . . . . . . . . . . . . . . . . . Propulsion . | . . . . . . . . . . . . . . . . . Utility 4 | . . . . . . 1 . . . . . 1 1 . . 1 Weapon . | . . . . . . . . . . . . . . . . . Highest Loss Streak 1 | . . . . . . 1 . . . . . 1 1 . . 1 To Critical Strikes . | . . . . . . . . . . . . . . . . . Average Backups 3 | . 1 2 2 3 3 1 2 3 4 3 4 3 4 5 6 3 Power . | . . . . . . . . . . . . . . . . . Propulsion . | . 1 1 . 1 . . . . . . . . . . . . Utility 1 | . . . . 1 1 1 1 2 1 . 1 1 . 1 2 1 Weapon 1 | . . . 1 1 . . . 1 2 3 3 2 3 4 3 1 Tool/Special . | . . . . . . . . . . . . . . . . . Unused Backups 26 | . . 1 . . 6 . . . . 2 2 3 2 2 2 6 Power 3 | . . . . . 3 . . . . . . . . . . . Propulsion 1 | . . 1 . . . . . . . . . . . . . . Utility 4 | . . . . . 3 . . . . 1 . . . . . . Weapon 18 | . . . . . . . . . . 1 2 3 2 2 2 6 Tool/Special . | . . . . . . . . . . . . . . . . . Average Slot Usage (%) 90 | . 100 97 99 100 91 93 98 100 98 99 100 79 75 79 75 77 Engine 6 | . 2 . 8 14 14 13 12 11 11 11 7 5 3 . . . Core 5 | . 10 11 5 . . . . . . . 2 5 6 10 10 10 Hover 22 | . 18 26 24 21 21 20 22 24 23 22 22 22 21 25 25 25 Device 28 | . 33 35 30 28 28 34 37 36 33 32 27 18 20 25 25 20 Processor 5 | . . . . . . . . 2 5 5 11 15 12 10 10 12 Protection 3 | . . . 4 14 13 3 6 5 5 5 5 . . . . 2 Energy Cannon 1 | . . . . . . . . . . . . 1 6 6 5 5 Ballistic Gun 14 | . 26 22 22 21 13 20 19 17 17 20 21 9 . . . . Peak Build Rating 147 | 9 13 14 30 30 41 37 53 69 73 86 86 103 129 128 121 147 Average Rating 66 | 5 11 13 27 30 28 35 46 61 69 76 84 88 104 123 120 125 On Entrance 58 | . 9 13 14 30 30 37 37 53 68 73 82 86 89 128 121 120 Avg Prop Armor Cover (%) 2 | . . . . . . . . . . . . . . . . 2 Naked Turns . | . . . . . . . . . . . . . . . . . Heaviest Build 52 | 9 11 13 39 39 39 37 42 42 42 44 44 44 42 39 37 52 Greatest Support 78 | 31 31 29 40 40 40 40 56 59 59 59 51 51 78 73 73 73 Greatest Overweight (x) . | . . . . . . . . . . . . . . . . . Average Overweight (x) . | . . . . . . . . . . . . . . . . . Largest Inventory Capacity 6 | 2 2 4 4 4 4 4 4 4 4 4 5 5 6 6 6 6 Average Capacity 4 | 2 2 2 4 4 4 4 4 4 4 4 4 5 5 6 6 6 Most Carried 6 | . 2 3 4 4 4 1 4 4 4 4 5 5 6 6 6 6 Average Carried 3 | . 1 2 3 4 3 1 2 3 3 3 4 3 5 5 5 5 Final Capacity 6 | 2 2 4 4 4 4 4 4 4 4 4 5 5 6 6 6 6 Final Carried 6 | . 2 3 4 4 1 1 4 4 4 4 5 2 6 6 6 5 Scrap Engine Consumption 24 | . . . . . . . . . . . . 14 . 6 . 4 Constructs Created 1 | . . . . . . . . . . . . 1 . . . . Constructs Modified 9 | . . . . . . . . . . . . 5 . 3 . 1 Class Distribution -------------------- 36% | Hacker-Gunner 18% | Hacker-Mutant 12% | Tank 11% | Gunner 10% | Scavenger-Mutant 6% | Mutant Dominant Class ---------------- Scavenger-Mutant | -10/Materials Scavenger-Mutant | -10/Mines Tank | -9/Materials Tank | -9/Mines Tank | -9/Exiles Gunner | -8/Mines Gunner | -8/Materials Hacker-Gunner | -7/Factory Hacker-Gunner | -7/Waste Hacker-Gunner | -7/Factory Hacker-Gunner | -7/Storage Hacker-Mutant | -7/Recycling Hacker-Gunner | -5/Factory Hacker-Gunner | -5/Upper Caves Commander-Mutant | -5/Upper Caves Hacker-Gunner | -5/Warlord Resources | -11 -10 -10 -9 -9 -9 -8 -8 -7 -7 -7 -7 -7 -5 -5 -5 -5 ----------- Run | Yrd Mat Min Mat Min Exi Min Mat Fac Was Fac Sto Rec Fac Upp Upp War Matter Collected 13026 | 294 707 224 1719 226 527 413 1477 1478 12 1795 1740 667 845 57 100 745 Remotely . | . . . . . . . . . . . . . . . . . Salvage Created 32044 | 57 1334 313 2103 219 195 426 2538 2100 . 2652 1346 1550 9146 379 1115 6571 Parts 1433 | 7 99 24 157 13 2 40 168 124 . 150 95 56 214 8 50 226 Haulers Intercepted 28 | . 2 . 6 . . . 5 4 . 1 5 . 5 . . . Recyclers Shooed 8 | . . . 2 . . . . 1 . . 2 3 . . . . Parts Field Recycled . | . . . . . . . . . . . . . . . . . Retrieved Matter . | . . . . . . . . . . . . . . . . . Parts Self-Destructed 60 | . . . . . . . . . . . . . . 8 52 . Prevented 4 | . . . . . . . . . . . . . . 4 . . Parts Restored . | . . . . . . . . . . . . . . . . . Kills | -11 -10 -10 -9 -9 -9 -8 -8 -7 -7 -7 -7 -7 -5 -5 -5 -5 ------- Run | Yrd Mat Min Mat Min Exi Min Mat Fac Was Fac Sto Rec Fac Upp Upp War Combat Hostiles Destroyed 586 | . 35 17 45 7 4 12 48 40 . 37 31 6 167 9 23 105 Guns 272 | . 35 10 42 7 4 12 48 40 . 37 31 6 . . . . Cannons 172 | . . . 3 . . . . . . . . . 69 2 19 79 AOE 7 | . . 7 . . . . . . . . . . . . . . Classes Destroyed 30 | 1 6 2 5 1 . . 3 1 . . . 2 3 . 2 4 Worker 33 | . 1 1 5 1 . . 5 4 . 8 2 . 6 . . . Builder 20 | . 1 1 1 1 . . 2 1 . 5 2 5 1 . . . Tunneler 9 | 3 . 2 . . . 2 . 1 . 1 . . . . . . Hauler 28 | . 2 . 6 . . . 5 4 . 1 5 . 5 . . . Recycler 29 | . . 1 3 1 . 1 2 3 . 3 2 13 . . . . Mechanic 1 | . . . 1 . . . . . . . . . . . . . Operator 7 | . . . 2 . . . . 1 . 2 1 . 1 . . . Watcher 14 | . 3 . 3 . . . 1 1 . 2 1 . 3 . . . Swarmer 80 | . 6 6 6 4 . 4 4 2 . 4 3 . 19 2 10 10 Cutter 8 | . . . . . . . . . . . . . 8 . . . Saboteur 6 | . . . . . . . . . . . . . 6 . . . Grunt 243 | . 29 . 28 2 . 7 26 24 . 18 14 . 68 . 7 20 Brawler 19 | . . . . 1 . . 1 1 . 2 . . 11 2 . 1 Duelist 19 | . . . 1 . . 1 1 3 . . 1 . 9 2 . 1 Protector 7 | . . . 1 . . . 1 . . 1 . . 2 . . 2 Sentry 67 | . . . 9 . . . 9 5 . 5 11 3 21 2 2 . Demolisher 2 | . . . . . . . . . . . . . 1 . . 1 Specialist 5 | . . . . . . . 2 . . . . . 2 . . 1 Hunter 21 | . . . . . . . 3 2 . . . . 11 1 1 3 Programmer 23 | . . . . . . . . 3 . 6 2 . 7 . 1 4 Heavy 4 | . . . . . . . 1 . . 1 . . 2 . . . Behemoth 1 | . . . . . . . . . . . . . . . 1 . Striker 2 | . . . . . . . . . . . . . . . . 2 Executioner 2 | . . . . . . . . . . . . . . . . 2 Scientist 2 | . . . . . . . . . . . . 2 . . . . Scrapper 3 | . . . . . . . . . . . . 3 . . . . Tinkerer 1 | . . . . . . . . . . . . . . . . 1 Assembled 14 | . . 11 . . 3 . . . . . . . . . . . Surgeon 2 | . . . . . . . . . . . . . . . . 2 Wasp 2 | . . . . . . . . . . . . . . . . 2 Thug 25 | . . . . . . . . . . 1 . . . . . 24 Savage 2 | . . . . . . . . . . . . . . . . 2 Butcher 4 | . . . . . . . . . . . . . . . . 4 Bouncer 6 | . . . . . . . . . . . . . . . . 6 Martyr 1 | . . . . . . . . . . . . . . . . 1 Wizard 4 | . . . . . . . . . . . . . . . . 4 Marauder 1 | . . . . . . . . . . . . . . . . 1 Mutant 10 | . . . . . . . . . . . . . . . 1 9 Commander 1 | . . . . . . . . . . . . . . . . 1 Knight 2 | . . . . . . . . . . . . . . . . 2 Best Kill Streak 48 | 3 4 9 15 4 3 11 11 10 . 7 12 6 28 7 12 48 Combat Bots Only 46 | . 3 8 12 4 3 10 8 7 . 5 9 3 28 7 12 46 Max Kills in Single Turn 3 | 2 1 2 2 1 2 1 2 2 . 3 2 3 2 2 2 2 Gunslinging 1 | . . 1 1 . 1 . 1 1 . 1 . . . . . . Exploded 2 | . . 2 . . . . . . . . . . . . . . Melee . | . . . . . . . . . . . . . . . . . Uniques/NPCs Destroyed 3 | . . . . . 1 . . . . . . . . . . 2 8R-AWN (-9/Exiles) Warlord (-5/Warlord) Fake God Mode (-5/Warlord) Combat | -11 -10 -10 -9 -9 -9 -8 -8 -7 -7 -7 -7 -7 -5 -5 -5 -5 -------- Run | Yrd Mat Min Mat Min Exi Min Mat Fac Was Fac Sto Rec Fac Upp Upp War Hostile Shots Fired 1650 | . 124 37 132 28 60 24 93 121 . 146 125 39 358 8 22 333 Missed 660 | . 28 10 48 5 13 6 45 56 . 73 52 19 169 6 11 119 Hits 990 | . 96 27 84 23 47 18 48 65 . 73 73 20 189 2 11 214 Melee 23 | . . 6 . 1 . . . . . . 1 . 15 . . . Projectile 967 | . 96 21 84 22 47 18 48 65 . 73 72 20 174 2 11 214 AOE 9 | . . . . . . . . . . 2 . . 5 . . 2 Critical Strikes 64 | . . . 5 1 27 . 5 1 . 1 . . 14 . 1 9 Actively Blocked 25 | . . . . . . . . . . 1 . . 14 . 1 9 Part Disruptions 6 | . . . . . . . . . . . . . . . . 6 Damage Taken 14610 | . 1067 463 792 188 618 181 550 687 . 1009 765 306 4094 34 217 3639 Core 11136 | . 863 380 609 120 423 140 388 470 . 740 554 227 3323 26 170 2703 Absorbed by Shields 1108 | . . . 260 75 214 73 210 276 . . . . . . . . Redirected to Core 9136 | . 627 287 472 82 376 94 314 459 . 604 522 215 2756 26 170 2132 Regen/Repaired (Parts) 80 | . 2 . . . . . . . . 20 . . . . . 58 Core Remaining (%) 85 | 100 . 53 . . . 78 99 . . . . 97 . . . . Volleys Fired 1517 | 4 109 23 120 18 37 29 116 114 1 114 94 64 336 24 39 275 Largest 4 | 2 2 2 3 3 3 3 3 3 3 4 4 4 2 1 1 1 Hottest 212 | 40 40 53 116 69 69 69 69 75 75 100 100 112 212 112 108 146 Shots Fired 3184 | 8 219 44 353 55 108 87 348 342 3 427 372 145 339 24 39 271 Gun 2464 | 8 219 40 339 55 108 87 348 342 3 427 372 114 2 . . . Cannon 716 | . . . 14 . . . . . . . . 31 337 24 39 271 Launcher 4 | . . 4 . . . . . . . . . . . . . . Special . | . . . . . . . . . . . . . . . . . Kinetic 2476 | 8 219 40 346 55 108 87 348 342 3 427 372 118 . 3 . . Thermal 686 | . . . 7 . . . . . . . . 27 339 21 39 253 Explosive 4 | . . 4 . . . . . . . . . . . . . . Electromagnetic . | . . . . . . . . . . . . . . . . . Entropic 18 | . . . . . . . . . . . . . . . . 18 Robot Hit Streak 95 | 2 22 8 28 19 35 15 95 34 2 22 35 30 79 27 34 50 Robot Miss Streak 5 | 2 4 3 3 4 2 2 2 4 1 3 3 4 5 2 1 2 Penetration Max . | . . . . . . . . . . . . . . . . . Secondary Targets 43 | . 1 1 8 2 1 3 6 6 . 8 6 1 . . . . Max Gunslinging Chain 1 | . 1 1 1 1 1 1 1 1 . 1 1 1 . . . . Capacitor 503 | . . . . . . . . . . . . . 176 21 39 267 Shots Hit Robots 2393 | 3 158 27 238 35 91 60 277 227 2 284 245 86 337 17 37 269 Core Hits 1610 | 3 68 27 87 11 17 29 115 104 1 121 87 39 526 20 44 311 Critical Kills 5 | . . 2 . . . . 2 1 . . . . . . . . Critical Parts Destroyed 14 | . . . 4 . . . 4 2 . . 4 . . . . . Critical Strikes 39 | . . 2 4 . . . 6 3 . . 5 1 17 1 . . Burn 18 | . . . . . . . . . . . . . 17 1 . . Destroy 21 | . . 2 4 . . . 6 3 . . 5 1 . . . . Melee Attacks . | . . . . . . . . . . . . . . . . . Impact . | . . . . . . . . . . . . . . . . . Slashing . | . . . . . . . . . . . . . . . . . Piercing . | . . . . . . . . . . . . . . . . . Sneak Attacks . | . . . . . . . . . . . . . . . . . Combat Hostiles . | . . . . . . . . . . . . . . . . . Follow-up Attacks . | . . . . . . . . . . . . . . . . . Damage Inflicted 68738 | 53 2078 725 3898 556 1374 949 4732 4983 44 6981 5554 1957 14767 800 2104 17183 Guns 32505 | 53 2078 342 3696 556 1374 949 4732 4523 44 6981 5499 1648 30 . . . Cannons 35241 | . . . 202 . . . . . . . . 309 14643 800 2104 17183 Explosions 969 | . . 383 . . . . . 460 . . 32 . 94 . . . Melee . | . . . . . . . . . . . . . . . . . Ramming 23 | . . . . . . . . . . . 23 . . . . . Kinetic 32625 | 53 2078 342 3792 556 1374 949 4732 4523 44 6981 5499 1702 . . . . Thermal 33899 | . . . 106 . . . . . . . . 255 14748 800 2104 15886 Explosive 894 | . . 383 . . . . . 460 . . 32 . 19 . . . Electromagnetic . | . . . . . . . . . . . . . . . . . Impact . | . . . . . . . . . . . . . . . . . Slashing . | . . . . . . . . . . . . . . . . . Piercing . | . . . . . . . . . . . . . . . . . Entropic 1297 | . . . . . . . . . . . . . . . . 1297 Highest Corruption 8 | . 1 1 1 1 1 1 1 . . 3 4 4 3 3 3 8 Average Corruption 2 | . 1 1 1 1 1 1 1 . . 2 3 4 1 3 3 5 Corruption Purged . | . . . . . . . . . . . . . . . . . Corruption Blocked . | . . . . . . . . . . . . . . . . . Effects 138 | . 2 2 10 3 4 . 3 . . 4 16 34 22 11 7 20 Message Errors 29 | . 1 . 1 . 1 . . . . . 4 6 7 4 3 2 Matter Fused 32 | . . . 2 1 1 . 2 . . 1 2 11 2 2 3 5 Heat Flow Errors 9 | . . . 1 . . . . . . . 1 3 1 2 . 1 Energy Discharges 19 | . . . 1 1 . . 1 . . 2 . 4 6 1 . 3 Parts Rejected 5 | . . 1 . . . . . . . . 1 1 1 . . 1 Data Loss (minor) 11 | . . . 1 . 1 . . . . . 1 4 2 1 . 1 Data Loss (major) 9 | . . . 2 . . . . . . . 1 3 . 1 . 2 Misfires 7 | . 1 . 1 1 1 . . . . 1 1 . 1 . . . Alerts 5 | . . 1 . . . . . . . . . . 2 . 1 1 Weapon Failures 12 | . . . 1 . . . . . . . 5 2 . . . 4 Overload Shots . | . . . . . . . . . . . . . . . . . Overflow Damage 224 | . . . . . . . . 37 . . 2 . 83 . . 102 Projectiles 133 | . . . . . . . . . . . . . 31 . . 102 Explosions 91 | . . . . . . . . 37 . . 2 . 52 . . . Melee . | . . . . . . . . . . . . . . . . . Knockbacks 2 | . . . 1 . . . . . . . . 1 . . . . Impact . | . . . . . . . . . . . . . . . . . Kinetic 2 | . . . 1 . . . . . . . . 1 . . . . Secondary . | . . . . . . . . . . . . . . . . . Self-Inflicted Damage 462 | . . 93 . . . . . 139 . . 53 . 177 . . . Shots 7 | . . 2 . . . . . 2 . . 1 . 2 . . . Rammed 1 | . . . . . . . . . . . 1 . . . . . Targets Rammed 1 | . . . . . . . . . . . 1 . . . . . Kicked . | . . . . . . . . . . . . . . . . . Crushed . | . . . . . . . . . . . . . . . . . Highest Temperature 569 | . . . 310 . . 2 20 34 8 154 569 223 346 199 116 310 Average Temperature 61 | . . . 142 . . 2 4 6 8 41 67 49 84 76 39 65 Received Heat Transfer 3130 | . 528 20 345 38 . 72 238 204 . 219 198 108 681 . 45 434 Effects 6 | . . . . . . . . . . . 2 . 2 . . 2 Shutdowns 2 | . . . . . . . . . . . 2 . . . . . Energy Bleed 1 | . . . . . . . . . . . . . 1 . . . Interference 3 | . . . . . . . . . . . . . 1 . . 2 Siege Activations . | . . . . . . . . . . . . . . . . . Martial Activations . | . . . . . . . . . . . . . . . . . Shielding Activations . | . . . . . . . . . . . . . . . . . Robots Disrupted . | . . . . . . . . . . . . . . . . . Combat Hostiles . | . . . . . . . . . . . . . . . . . Robots Corrupted . | . . . . . . . . . . . . . . . . . Combat Hostiles . | . . . . . . . . . . . . . . . . . Parts Fried . | . . . . . . . . . . . . . . . . . Impact Corruptions . | . . . . . . . . . . . . . . . . . Robots Melted 138 | . . . . . . . . . . . . . 101 7 4 26 Combat Hostiles 135 | . . . . . . . . . . . . . 98 7 4 26 Parts Melted 787 | . . . . . . . . . . 1 . 10 478 20 25 253 Heat Transferred 112027 | . . . 185 . . . . . . . . 1150 67253 3650 5150 34639 Parts Sabotaged 2 | . . . . . . . . . . . . . 2 . . . Parts Stolen . | . . . . . . . . . . . . . . . . . Parts Stripped . | . . . . . . . . . . . . . . . . . Power Chain Reactions . | . . . . . . . . . . . . . . . . . Alert | -11 -10 -10 -9 -9 -9 -8 -8 -7 -7 -7 -7 -7 -5 -5 -5 -5 ------- Run | Yrd Mat Min Mat Min Exi Min Mat Fac Was Fac Sto Rec Fac Upp Upp War Maximum Alert Level 5 | . 2 1 3 2 . 1 3 4 2 4 4 2 5 . . . Low Security (%) 14 | 100 45 40 16 . . 37 21 . . . . 12 . . . . Level 1 20 | . 28 59 6 78 . 62 11 . 51 11 . 51 . . . . Level 2 24 | . 25 . 34 21 . . 19 35 48 12 19 36 19 . . . Level 3 21 | . . . 41 . . . 48 19 . 59 50 . 11 . . . Level 4 11 | . . . . . . . . 44 . 16 29 . 22 . . . Level 5 . | . . . . . . . . . . . . . 6 . . . High Security 6 | . . . . . . . . . . . . . 40 . . . Max Security . | . . . . . . . . . . . . . . . . . Sterilizations 1 | . . . . . . . . . . . . . 1 . . . Peak Influence 3684 | 15 526 241 907 427 . 285 1071 1255 437 1277 1187 523 3684 . . . Initial 574 | . 3 196 70 350 . . 83 484 437 249 574 453 489 . . . Average 707 | 2 240 204 566 371 . 172 592 888 400 843 925 335 1635 . . . Influence Increases 14591 | 15 1042 216 1359 237 . 340 1428 1257 . 1760 901 281 4183 152 500 920 Destroy 0b10 Robot/C 8968 | . 700 120 880 140 . 240 940 764 . 768 496 48 2640 144 368 720 Destroy 0b10 Robot/NC 665 | 15 35 25 105 15 . 15 80 63 . 108 52 72 72 . . 8 Destroy Leader 1782 | . 160 20 228 20 . 40 252 208 . 202 156 . 464 8 24 . Allied During Kill 447 | . . . . 32 . . . . . 307 . . . . 108 . Successful Hack 264 | . 19 . 44 . . . 32 34 . 19 24 27 65 . . . Select Force Hacks 368 | . 110 . 60 . . . 30 48 . . . 120 . . . . Disable Machine 507 | . . . . 15 . 45 . 75 . 156 132 12 72 . . . Destroy Structure 224 | . 3 21 12 . . . 4 23 . 80 17 2 62 . . . Advance Influence 400 | . . . . . . . . . . . . . 400 . . . Partial Spotted 192 | . . 30 . . . . 60 42 . . 24 . 36 . . . Lose Combat Pursuer 774 | . 15 . 30 15 . . 30 . . 120 . . 372 . . 192 Influence Decreases 13753 | 10 543 538 642 763 373 125 578 1071 894 854 1001 1230 713 1706 627 2085 Entered New Map 8275 | . 2 308 112 549 373 . 132 581 814 108 689 710 125 1364 405 2003 Time Decay 5018 | 10 541 230 530 214 . 115 446 490 80 446 302 510 458 342 222 82 Search Patrol Dispatched 100 | . . . . . . . . . . . . . 100 . . . Lost Part 30 | . . . . . . 10 . . . . . 10 10 . . . Lost Ally 330 | . . . . . . . . . . 300 10 . 20 . . . Squads Dispatched 103 | . 10 . 8 . . . 11 19 . 12 7 . 36 . . . Investigation 42 | . 10 . 7 . . . 7 10 . 3 2 . 3 . . . Extermination 12 | . . . . . . . . 4 . 3 3 . 2 . . . Reinforcement 18 | . . . . . . . 3 1 . 4 1 . 9 . . . Assault 19 | . . . 1 . . . 1 1 . . 1 . 15 . . . Garrison 12 | . . . . . . . . 3 . 2 . . 7 . . . Intercept . | . . . . . . . . . . . . . . . . . Searches Triggered 1 | . . . . . . . . . . . . . 1 . . . Construction Impeded 1 | . . . . . . . . . . 1 . . . . . . Haulers Reinforced 3 | . . . . . . . . . . . 1 . 2 . . . Active Scanning Responses . | . . . . . . . . . . . . . . . . . Cargo Convoy Interrupts 1 | . . . . . . . . . . 1 . . . . . . Stealth | -11 -10 -10 -9 -9 -9 -8 -8 -7 -7 -7 -7 -7 -5 -5 -5 -5 --------- Run | Yrd Mat Min Mat Min Exi Min Mat Fac Was Fac Sto Rec Fac Upp Upp War Distress Signals 26 | . 2 . 3 . . . 4 4 . 3 2 . 8 . . . Communications Jammed . | . . . . . . . . . . . . . . . . . Distress Signals . | . . . . . . . . . . . . . . . . . Times Spotted 755 | . 46 17 55 8 5 13 60 47 1 72 38 6 233 9 22 123 Peak Tracking Total 18 | . 4 5 6 3 9 4 5 4 1 11 7 3 18 7 6 17 Tactical Retreats 30 | . 1 . 2 1 . . 2 . . 6 . . 14 . . 4 Traps | -11 -10 -10 -9 -9 -9 -8 -8 -7 -7 -7 -7 -7 -5 -5 -5 -5 ------- Run | Yrd Mat Min Mat Min Exi Min Mat Fac Was Fac Sto Rec Fac Upp Upp War Traps Triggered 25 | . 2 . 3 . . . 3 3 . 3 3 . 1 . . 7 Indirectly . | . . . . . . . . . . . . . . . . . Trap Hack Attempts . | . . . . . . . . . . . . . . . . . Triggered . | . . . . . . . . . . . . . . . . . Disarmed 6 | . . . . . . . . . . 6 . . . . . . Reprogrammed . | . . . . . . . . . . . . . . . . . Reused . | . . . . . . . . . . . . . . . . . Traps Extracted . | . . . . . . . . . . . . . . . . . Installed . | . . . . . . . . . . . . . . . . . Triggered . | . . . . . . . . . . . . . . . . . Most Traps Carried 1 | . . 1 1 1 1 . . . . . . . . . . . Machines | -11 -10 -10 -9 -9 -9 -8 -8 -7 -7 -7 -7 -7 -5 -5 -5 -5 ---------- Run | Yrd Mat Min Mat Min Exi Min Mat Fac Was Fac Sto Rec Fac Upp Upp War Machines Disabled 53 | . 1 . . 1 5 3 . 5 . 13 11 1 6 . 3 4 Max in Single Turn 4 | . 1 . . 1 1 1 . 2 . 1 1 1 4 . 1 2 Garrison Access 5 | . . . . . . . 1 1 . 1 . . 2 . . . Machines Repaired . | . . . . . . . . . . . . . . . . . Machines Dismantled . | . . . . . . . . . . . . . . . . . Machines Sabotaged 1 | . 1 . . . . . . . . . . . . . . . Overloaded Fab Kills . | . . . . . . . . . . . . . . . . . Hacking | -11 -10 -10 -9 -9 -9 -8 -8 -7 -7 -7 -7 -7 -5 -5 -5 -5 --------- Run | Yrd Mat Min Mat Min Exi Min Mat Fac Was Fac Sto Rec Fac Upp Upp War Machines Accessed 101 | . 11 . 13 . 1 . 13 16 . 11 5 10 13 1 1 6 Terminals 60 | . 8 . 10 . . . 11 7 . 6 5 4 9 . . . Fabricators 11 | . . . . . . . . 6 . 3 . . 2 . . . Repair Stations 2 | . 1 . 1 . . . . . . . . . . . . . Recycling Units 8 | . 2 . 1 . . . . . . . . 5 . . . . Scanalyzers 4 | . . . 1 . . . 1 2 . . . . . . . . Garrison Access 6 | . . . . . . . 1 1 . 2 . . 2 . . . Total Hacks 237 | . 28 . 33 . 1 . 30 40 . 31 12 26 26 1 1 8 Successful 129 | . 17 . 16 . 1 . 17 15 . 17 6 16 14 1 1 8 Failed 108 | . 11 . 17 . . . 13 25 . 14 6 10 12 . . . Catastrophic 20 | . 1 . . . . . 2 7 . 4 1 4 1 . . . Database Lockouts . | . . . . . . . . . . . . . . . . . Manual 179 | . 26 . 29 . 1 . 29 20 . 19 10 24 21 . . . Terminals 164 | . 25 . 29 . . . 28 18 . 19 12 13 20 . . . Fabricators 30 | . . . . . . . . 19 . 7 . . 4 . . . Repair Stations 2 | . 1 . 1 . . . . . . . . . . . . . Recycling Units 14 | . 2 . 1 . . . . . . . . 11 . . . . Scanalyzers 5 | . . . 2 . . . 1 2 . . . . . . . . Garrison Access 9 | . . . . . . . 1 1 . 5 . . 2 . . . Terminal Hacks 38 | . 5 . 4 . 1 . 1 1 . 5 4 5 2 1 1 8 Record 8 | . 1 . . . . . . . . . . . . . . 7 Part Schematic 2 | . . . . . . . . 1 . . . . 1 . . . Robot Analysis 10 | . 3 . 3 . . . . . . 1 . 3 . . . . Open Door 6 | . . . . . . . . . . . 3 . . 1 1 1 Branch Access Points 3 | . . . . . . . 1 . . 1 1 . . . . . Terminal Index 3 | . 1 . . . . . . . . 1 . . 1 . . . Fabricator Index 1 | . . . . . . . . . . 1 . . . . . . Locate Traps 1 | . . . 1 . . . . . . . . . . . . . Disarm Traps 1 | . . . . . . . . . . 1 . . . . . . Proto ID Catalog 1 | . . . . . 1 . . . . . . . . . . . Release Object 2 | . . . . . . . . . . . . 2 . . . . Fabricator Hacks 14 | . . . . . . . . 8 . 4 . . 2 . . . Network Status 1 | . . . . . . . . 1 . . . . . . . . Load Schematic 7 | . . . . . . . . 4 . 2 . . 1 . . . Build 6 | . . . . . . . . 3 . 2 . . 1 . . . Repair Station Hacks . | . . . . . . . . . . . . . . . . . Recycling Unit Hacks . | . . . . . . . . . . . . . . . . . Scanalyzer . | . . . . . . . . . . . . . . . . . Garrison Access Hacks 5 | . . . . . . . 1 1 . 1 . . 2 . . . Seal Access 5 | . . . . . . . 1 1 . 1 . . 2 . . . Unauthorized Hacks 72 | . 12 . 12 . . . 15 5 . 7 2 11 8 . . . Terminals 53 | . 9 . 9 . . . 14 3 . 6 2 3 7 . . . Assimilate 8 | . . . 3 . . . 2 1 . . . . 2 . . . Botnet 28 | . 4 . 4 . . . 7 1 . 3 2 3 4 . . . Operators 5 | . . . . . . . 2 1 . 1 . . 1 . . . Skim 3 | . . . 1 . . . . . . 2 . . . . . . Sabotage 9 | . 5 . 1 . . . 3 . . . . . . . . . Fabricators 2 | . . . . . . . . . . 1 . . 1 . . . Haulers 2 | . . . . . . . . . . 1 . . 1 . . . Repair Stations 2 | . 1 . 1 . . . . . . . . . . . . . Patch 2 | . 1 . 1 . . . . . . . . . . . . . Recycling Units 11 | . 2 . 1 . . . . . . . . 8 . . . . Reject 1 | . . . . . . . . . . . . 1 . . . . Recyclers 1 | . . . . . . . . . . . . 1 . . . . Mask 1 | . . . . . . . . . . . . 1 . . . . Tunnel 8 | . 2 . 1 . . . . . . . . 5 . . . . Scanalyzers 4 | . . . 1 . . . 1 2 . . . . . . . . Extract 4 | . . . 1 . . . 1 2 . . . . . . . . Garrison Access . | . . . . . . . . . . . . . . . . . Data Cores Recovered 3 | . . . . . . . . . . 2 1 . . . . . Used 1 | . . . . . . . . . . 1 . . . . . . Hacking Detections 60 | . 7 . 8 . . . 8 12 . 9 3 5 8 . . . Full Trace Events 24 | . 2 . 3 . . . 2 8 . 3 . 3 3 . . . Feedback Events 2 | . 1 . 1 . . . . . . . . . . . . . Corruption 2 | . 1 . 1 . . . . . . . . . . . . . Feedback Blocked . | . . . . . . . . . . . . . . . . . Robot Schematics Acquired . | . . . . . . . . . . . . . . . . . Robots Built . | . . . . . . . . . . . . . . . . . Authchips . | . . . . . . . . . . . . . . . . . Time . | . . . . . . . . . . . . . . . . . Total Robot Build Rating . | . . . . . . . . . . . . . . . . . Part Schematics Acquired 19 | . . . 6 . . . 1 11 . . . . 1 . . . Parts Built 7 | . . . . . . . . 3 . 2 . . 2 . . . Authchips . | . . . . . . . . . . . . . . . . . Time 445 | . . . . . . . . 212 . 116 . . 117 . . . Total Part Build Rating 29 | . . . . . . . . 9 . 6 . . 14 . . . Part Studies Acquired . | . . . . . . . . . . . . . . . . . Parts Repaired . | . . . . . . . . . . . . . . . . . Time . | . . . . . . . . . . . . . . . . . Parts Recycled . | . . . . . . . . . . . . . . . . . Recycled Matter . | . . . . . . . . . . . . . . . . . Retrieved Matter . | . . . . . . . . . . . . . . . . . Retrieved Components . | . . . . . . . . . . . . . . . . . Parts Scanalyzed . | . . . . . . . . . . . . . . . . . Part Schematics Acquired . | . . . . . . . . . . . . . . . . . Parts Damaged . | . . . . . . . . . . . . . . . . . Bothacking | -11 -10 -10 -9 -9 -9 -8 -8 -7 -7 -7 -7 -7 -5 -5 -5 -5 ------------ Run | Yrd Mat Min Mat Min Exi Min Mat Fac Was Fac Sto Rec Fac Upp Upp War Used RIF Installer . | . . . . . . . . . . . . . . . . . Robots Hacked . | . . . . . . . . . . . . . . . . . Non-combat . | . . . . . . . . . . . . . . . . . Combat . | . . . . . . . . . . . . . . . . . Robot Hacks Applied . | . . . . . . . . . . . . . . . . . Relay Couplers Released . | . . . . . . . . . . . . . . . . . Fabnet Peak Effective % . | . . . . . . . . . . . . . . . . . Robots Rewired 6 | . . . . . . . . . . . . . . 2 4 . Allies Hacked 1 | . . . . . . . . . . 1 . . . . . . Hacks Repelled . | . . . . . . . . . . . . . . . . . Allies | -11 -10 -10 -9 -9 -9 -8 -8 -7 -7 -7 -7 -7 -5 -5 -5 -5 -------- Run | Yrd Mat Min Mat Min Exi Min Mat Fac Was Fac Sto Rec Fac Upp Upp War Total Allies 36 | . . . 1 5 . . 1 1 20 . . . 2 2 4 . Largest Group 20 | . . . 1 5 5 . 1 1 20 20 1 . 1 2 6 6 Highest-Rated Group 524 | . . . 10 81 81 . 10 26 524 524 24 . 26 59 175 175 Highest-Rated Ally 35 | . . . 10 31 31 . 10 26 35 35 24 . 26 30 30 30 Total Orders 11 | . . . 3 . 4 . 1 . . . . . 2 . . 1 STAY 7 | . . . 1 . 3 . 1 . . . . . 1 . . 1 FOLLOW 4 | . . . 2 . 1 . . . . . . . 1 . . . Ally Attacks 198 | . . . . 1 14 . . . 4 136 . . . . 12 31 Total Damage 3082 | . . . . 22 76 . . . 32 2281 . . . . 155 516 Kills 23 | . . . . . . . . . 1 17 . . . . 1 4 Allies Corrupted 5 | . . . . . . . . . . 4 . . 1 . . . Allies Melted . | . . . . . . . . . . . . . . . . . Intel | -11 -10 -10 -9 -9 -9 -8 -8 -7 -7 -7 -7 -7 -5 -5 -5 -5 ------- Run | Yrd Mat Min Mat Min Exi Min Mat Fac Was Fac Sto Rec Fac Upp Upp War Active Infowar (turns) 9592 | 15 1701 499 1498 453 543 281 1114 1286 165 1103 676 258 . . . . Terrain 9559 | 15 1701 497 1498 453 543 281 1114 1286 165 1103 676 227 . . . . Seismic 9590 | 13 1701 499 1498 453 543 281 1114 1286 165 1103 676 258 . . . . Robot Analysis Total 9 | . 3 . 3 . . . . . . 1 . 2 . . . . Derelict Logs Recovered 9 | . . 2 . 1 . . . . . . . . . 3 3 . Drone Launches . | . . . . . . . . . . . . . . . . . Drone Recoveries . | . . . . . . . . . . . . . . . . . Exploration | -11 -10 -10 -9 -9 -9 -8 -8 -7 -7 -7 -7 -7 -5 -5 -5 -5 ------------- Run | Yrd Mat Min Mat Min Exi Min Mat Fac Was Fac Sto Rec Fac Upp Upp War Turns Passed 14942 | 71 1701 499 1498 453 543 281 1114 1286 165 1103 676 1388 1909 768 470 1017 Spaces Moved 18362 | 45 1417 708 1548 639 594 380 1375 1865 279 1970 868 1289 2399 1024 871 1091 Core 1 | 1 . . . . . . . . . . . . . . . . Treads . | . . . . . . . . . . . . . . . . . Legs . | . . . . . . . . . . . . . . . . . Wheels 377 | 44 333 . . . . . . . . . . . . . . . Hover 17984 | . 1084 708 1548 639 594 380 1375 1865 279 1970 868 1289 2399 1024 871 1091 Flight . | . . . . . . . . . . . . . . . . . Fastest Speed 31 | 50 56 52 52 52 52 52 38 38 38 38 38 38 31 36 36 31 Average Speed 43 | 89 63 54 52 52 52 52 44 38 38 38 38 38 38 36 36 37 Slowest Speed 100 | 100 90 56 56 52 52 52 52 38 38 38 38 38 42 36 36 40 Overloaded Moves 85 | . . . . . . . . . . . . . 50 . . 35 Propulsion Burnouts . | . . . . . . . . . . . . . . . . . Robots Hopped . | . . . . . . . . . . . . . . . . . Potential Cave-ins . | . . . . . . . . . . . . . . . . . Cave-ins Triggered . | . . . . . . . . . . . . . . . . . Exploration Rate (%) 78 | 4 96 97 91 98 61 85 92 53 95 53 92 99 55 98 81 89 Regions Visited 16 Branch Regions 9 Pre-discovered Areas 9 | . 2 . 1 1 . . . . . . . 5 . . . . Known Exits Taken 6 | . . . . . . . . . . 1 1 1 1 1 1 . Unknown Exits Taken 8 | 1 1 1 1 1 1 1 1 . . . . . . . . . Scrap Searched 13 | . . 1 . 2 . 1 . . . . . . . 5 4 . Spaces Dug . | . . . . . . . . . . . . . . . . . Terrain Destroyed 119 | . . 42 5 . . . . 23 . . 10 . 33 1 . 5 Melee . | . . . . . . . . . . . . . . . . . Projectile 6 | . . . 5 . . . . . . . . . . . . 1 AOE 112 | . . 42 . . . . . 23 . . 10 . 33 . . 4 Terrain Rammed . | . . . . . . . . . . . . . . . . . Walls Destroyed . | . . . . . . . . . . . . . . . . . Machines Disabled . | . . . . . . . . . . . . . . . . . Actions | -11 -10 -10 -9 -9 -9 -8 -8 -7 -7 -7 -7 -7 -5 -5 -5 -5 --------- Run | Yrd Mat Min Mat Min Exi Min Mat Fac Was Fac Sto Rec Fac Upp Upp War Total 24229 | 63 1991 773 2002 729 772 433 1757 2359 337 2269 1164 2157 3289 1420 1025 1689 Wait 3341 | 8 418 24 238 61 111 4 216 315 41 137 84 768 331 343 72 170 Move 18347 | 44 1416 707 1547 638 593 379 1374 1865 278 1969 867 1288 2398 1023 870 1091 Hop . | . . . . . . . . . . . . . . . . . Pick Up 49 | . 2 3 1 . 8 . 1 4 1 1 3 2 9 3 2 9 Fast Attach 58 | 7 1 1 9 . 3 1 3 . . 5 2 5 12 . . 9 Attach 7 | . . 1 1 . . . . 1 1 . . . 1 . . 2 Detach 3 | . . . 1 . . . . . . 1 . 1 . . . . Swap 75 | . 4 4 17 . 3 . 3 10 . 2 22 2 3 . . 5 Drop 92 | . 1 1 10 . 15 . 1 8 1 2 5 14 10 5 2 17 Fire 1517 | 4 109 23 120 18 37 29 116 114 1 114 94 64 336 24 39 275 Melee . | . . . . . . . . . . . . . . . . . Ram 1 | . . . . . . . . . . . 1 . . . . . Kick . | . . . . . . . . . . . . . . . . . Crush . | . . . . . . . . . . . . . . . . . Escape Stasis 36 | . . . . . . . . 6 . 4 26 . . . . . Rewire 49 | . . . . . . . . . 9 . . . . 13 27 . Trap . | . . . . . . . . . . . . . . . . . Miscellaneous 654 | . 40 9 58 12 2 20 43 36 5 34 60 13 189 9 13 111 Route ------- -11/Scrapyard -10/Materials (discovered 5 exits: *Mat x3 / [*Min x2]) -10/Mines (discovered 2 exits: *Mat x2) -9/Materials (discovered 5 exits: *Mat x3 / [*Min x2]) -9/Mines (discovered 4 exits: *Mat x2 / *Exi / [*Zio]) -9/Exiles -8/Mines (discovered 2 exits: *Mat x2) -8/Materials (discovered 3 exits: *Fac x3) -7/Factory (discovered 4 exits: [*Fac x3] / *Low) -7/Waste -7/Factory (discovered 6 exits: [*Fac x2] / *Sto x2 / *Low x2) -7/Storage (discovered 2 exits: [*Fac] / *Rec) -7/Recycling -5/Factory (discovered 3 exits: *Fac x2 / *Upp) -5/Upper Caves (discovered 2 exits: *Upp / *War) -5/Upper Caves -5/Warlord (discovered 1 exit: [*Pro]) History --------- Turn | Location | Event 1 | -11/Scrapyard | Upgraded with Propulsion slot (x1) 1 | -11/Scrapyard | Upgraded with Utility slot (x1) 1 | -11/Scrapyard | Upgraded with Weapon slot (x1) 10 | -11/Scrapyard | Discovered new exit (range 15) 72 | -11/Scrapyard | Entered Materials 248 | -10/Materials | Discovered new exit (range 16) 287 | -10/Materials | Discovered new exit (range 8) 308 | -10/Materials | Build established: Mutant 330 | -10/Materials | Discovered new exit (range 7) 330 | -10/Materials | Discovered new exit (range 10) 412 | -10/Materials | Discovered new exit (range 16) 562 | -10/Materials | Reached level 2 774 | -10/Materials | Upgraded with Utility slot (x1) 1062 | -10/Materials | Build established: Scavenger-Mutant 1166 | -10/Materials | Reached level 3 1524 | -10/Materials | Reached level 4 1537 | -10/Materials | Core integrity fell below 50% 1773 | -10/Materials | Entered Mines 1886 | -10/Mines | Discovered new exit (range 9) 1887 | -10/Mines | Assembled infested the area 1893 | -10/Mines | Learned Materials trap positions 1905 | -10/Mines | Received a Rocket Launcher from a helpful Derelict 1982 | -10/Mines | Destroyed 8 combat bots 2060 | -10/Mines | Found a hidden stash of uninstalled traps 2092 | -10/Mines | Discovered new exit (range 15) 2102 | -10/Mines | Reached level 5 2114 | -10/Mines | Learned Materials emergency access door positions 2133 | -10/Mines | A weapon hastily lodged in a ceiling crevice suddenly fell to the ground 2137 | -10/Mines | Upgraded with Propulsion slot (x1) 2137 | -10/Mines | Upgraded with Utility slot (x1) 2272 | -10/Mines | Entered Materials 2272 | -9/Materials | Discovered new exit (range 15) 2273 | -9/Materials | Loaded intel: 21 trap records 2274 | -9/Materials | Reached level 6 2303 | -9/Materials | Core integrity fell below 50% 2337 | -9/Materials | Upgraded with Weapon slot (x1) 2349 | -9/Materials | Upgraded with Power slot (x1) 2518 | -9/Materials | Discovered new exit (range 6) 2580 | -9/Materials | Reached level 7 2657 | -9/Materials | Destroyed 12 combat bots 2705 | -9/Materials | Discovered new exit (range 7) 2747 | -9/Materials | Reached level 8 2781 | -9/Materials | Build established: Gunner 2952 | -9/Materials | Upgraded with Utility slot (x1) 3072 | -9/Materials | First assault squad dispatched 3247 | -9/Materials | Build established: Tank 3284 | -9/Materials | Discovered new exit (range 16) 3454 | -9/Materials | Reached level 9 3659 | -9/Materials | Upgraded with Utility slot (x1) 3680 | -9/Materials | Discovered new exit (range 15) 3770 | -9/Materials | Entered Mines 3771 | -9/Mines | Met a Derelict bent on vengeance 3779 | -9/Mines | Assisted by bots powering up and referring to "LRC-V3" 3904 | -9/Mines | Discovered new exit (range 3) 3930 | -9/Mines | A Derelict revealed a hidden shortcut to a safe place 3939 | -9/Mines | Discovered new exit (range 11) 3940 | -9/Mines | Learned location of Storage (-7) 4086 | -9/Mines | Learned Materials stockpile data 4158 | -9/Mines | Deemed a non-threat by the Exiles lab entrance 4158 | -9/Mines | Discovered new exit (range 5) 4223 | -9/Mines | Entered Exiles 4223 | -9/Exiles | Accompanied by 5 allies 4238 | -9/Exiles | Met 8R-AWN 4245 | -9/Exiles | Met EX-HEX 4253 | -9/Exiles | Led the pair of lost Derelicts to a safe place 4259 | -9/Exiles | Met EX-BIN 4287 | -9/Exiles | Aligned with FarCom system 4287 | -9/Exiles | Given EX-Vault access code 4299 | -9/Exiles | Opened EX-Vault 4304 | -9/Exiles | Found 0b10 Alert Chip 4314 | -9/Exiles | Warned to stay clear of 0b10 Research branches 4331 | -9/Exiles | Met EX-DEC 4559 | -9/Exiles | Attacked by the Exiles 4733 | -9/Exiles | Destroyed 8R-AWN 4759 | -9/Exiles | Discovered new exit (range 15) 4766 | -9/Exiles | Left Exiles lab with 0b10 Alert Chip 4766 | -9/Exiles | Entered Mines 4768 | -8/Mines | Reached level 10 4876 | -8/Mines | Reached level 11 4895 | -8/Mines | Discovered new exit (range 13) 4901 | -8/Mines | Destroyed 10 combat bots 4936 | -8/Mines | Upgraded with Utility slot (x1) 5015 | -8/Mines | Discovered new exit (range 5) 5047 | -8/Mines | Entered Materials 5115 | -8/Materials | Reached level 12 5176 | -8/Materials | Discovered new exit (range 15) 5356 | -8/Materials | Discovered new exit (range 15) 5503 | -8/Materials | Build established: Gunner 5547 | -8/Materials | Destroyed 8 combat bots 5589 | -8/Materials | Discovered new exit (range 11) 5597 | -8/Materials | Reached level 13 5676 | -8/Materials | Upgraded with Propulsion slot (x1) 5847 | -8/Materials | First assault squad dispatched 6161 | -8/Materials | Entered Factory 6163 | -7/Factory | Reached level 14 6278 | -7/Factory | Discovered new exit (range 15) 6414 | -7/Factory | Reached level 15 6415 | -7/Factory | Fabricated Enh. Autogun (x1) 6593 | -7/Factory | Build established: Hacker-Gunner 6727 | -7/Factory | Fabricated Enh. Autogun (x1) 6796 | -7/Factory | Discovered new exit (range 8) 6811 | -7/Factory | Garrison activated, responded to threat 6839 | -7/Factory | Reached level 16 6860 | -7/Factory | Destroyed 7 combat bots 6893 | -7/Factory | Fabricated Enh. Autogun? 6899 | -7/Factory | Upgraded with Utility slot (x1) 7243 | -7/Factory | Discovered new exit (range 13) 7361 | -7/Factory | First assault squad dispatched 7418 | -7/Factory | Discovered new exit (range 16) 7447 | -7/Factory | Sucked down chute 7447 | -7/Factory | Entered Waste 7448 | -7/Waste | Joined by Warlord forces that had cleared the area 7457 | -7/Waste | A Compactor rumbled back to life 7457 | -7/Waste | Spotted C-40 Crusher 7457 | -7/Waste | Allies destroyed C-40 Crusher 7523 | -7/Waste | Discovered new exit (range 12) 7612 | -7/Waste | Entered Factory 7612 | -7/Factory | Accompanied by 20 allies 7721 | -7/Factory | Identified exit to Storage 7721 | -7/Factory | Identified exit to Lower Caves 7727 | -7/Factory | Discovered new exit (range 14) 7765 | -7/Factory | Lost 3 allies 7819 | -7/Factory | Reached level 17 7848 | -7/Factory | Garrison activated, responded to threat 7925 | -7/Factory | Upgraded with Weapon slot (x1) 7940 | -7/Factory | Fabricated Enh. Autogun (x1) 7951 | -7/Factory | Fabricated Enh. Autogun (x1) 8104 | -7/Factory | Discovered new exit (range 8) 8287 | -7/Factory | P-60 Hacker assimilated allied IM-V03(g) 8448 | -7/Factory | Cargo convoy interrupted 8532 | -7/Factory | Garrison activated, responded to threat 8536 | -7/Factory | Found Prototype Processor 8536 | -7/Factory | Identified Exp. Signal Interpreter 8543 | -7/Factory | Core integrity fell below 50% 8715 | -7/Factory | Entered Storage 8715 | -7/Storage | Accompanied by 1 ally 8869 | -7/Storage | Reached level 18 8897 | -7/Storage | Destroyed 7 combat bots 8908 | -7/Storage | Identified exit to Recycling 8990 | -7/Storage | Found Prototype Launcher 8990 | -7/Storage | Identified Scatter Rocket Array 9013 | -7/Storage | Used back door to open Recycling access 9044 | -7/Storage | Found Prototype Launcher 9044 | -7/Storage | Identified Rocket Array 9115 | -7/Storage | First assault squad dispatched 9175 | -7/Storage | Destroyed 9 combat bots 9230 | -7/Storage | Discovered new exit (range 6) 9391 | -7/Storage | Entered Recycling 9397 | -7/Recycling | Scanned before Scraplab entrance 9471 | -7/Recycling | Discovered new exit (range 10) 9633 | -7/Recycling | Entered Scraplab 9634 | -7/Recycling | Angered Scraplab inhabitants 9634 | -7/Recycling | Found Prototype Device 9634 | -7/Recycling | Identified Scrap Engine 10037 | -7/Recycling | Build established: Hacker-Mutant 10703 | -7/Recycling | Identified exit to Factory 10779 | -7/Recycling | Entered Factory 10781 | -5/Factory | Reached level 19 10978 | -5/Factory | Reached level 20 11028 | -5/Factory | Discovered new exit (range 8) 11079 | -5/Factory | Search patrols dispatched 11127 | -5/Factory | Garrison activated, responded to threat 11174 | -5/Factory | Destroyed 14 combat bots 11191 | -5/Factory | Reached level 21 11325 | -5/Factory | Core integrity fell below 50% 11333 | -5/Factory | Core integrity fell below 20% 11349 | -5/Factory | Destroyed 9 combat bots 11379 | -5/Factory | First assault squad dispatched 11402 | -5/Factory | Destroyed 9 combat bots 11479 | -5/Factory | Discovered new exit (range 15) 11496 | -5/Factory | Discovered new exit (range 13) 11544 | -5/Factory | Identified exit to Factory 11573 | -5/Factory | Reached level 22 11604 | -5/Factory | Destroyed 8 combat bots 11662 | -5/Factory | Destroyed 7 combat bots 11702 | -5/Factory | Upgraded with Propulsion slot (x1) 11702 | -5/Factory | Upgraded with Utility slot (x1) 11762 | -5/Factory | Garrison activated, responded to threat 11819 | -5/Factory | Identified exit to Upper Caves 11919 | -5/Factory | High security lockdown imminent 11943 | -5/Factory | Fabricated Quantum Capacitor (x2) 11999 | -5/Factory | High security lockdown engaged 12000 | -5/Factory | Build established: Hacker-Gunner 12068 | -5/Factory | Garrison activated, responded to threat 12077 | -5/Factory | Reached level 23 12156 | -5/Factory | Destroyed 28 combat bots 12257 | -5/Factory | Destroyed 8 combat bots 12430 | -5/Factory | Sterilization system engaged 12430 | -5/Factory | Non-combat units ordered to evacuate 12530 | -5/Factory | Combat units ordered to evacuate 12546 | -5/Factory | Destroyed 24 combat bots 12573 | -5/Factory | Reached level 24 12611 | -5/Factory | Destroyed 13 combat bots 12680 | -5/Factory | Destroyed 10 combat bots 12688 | -5/Factory | Entered Upper Caves 12691 | -5/Upper Caves | Learned Factory terminal intel 12699 | -5/Upper Caves | Attracted the attention of an 0b10 outpost 12731 | -5/Upper Caves | Destroyed 7 combat bots 12737 | -5/Upper Caves | Found DCF Scrap (12 items) 12763 | -5/Upper Caves | Learned Factory trap positions 12767 | -5/Upper Caves | A Derelict revealed a hidden shortcut to "reach the base" 12768 | -5/Upper Caves | Identified exit to Warlord 12838 | -5/Upper Caves | Attracted the attention of an 0b10 checkpoint 12867 | -5/Upper Caves | Learned 8 Factory zone layouts 12948 | -5/Upper Caves | Discovered new exit (range 10) 12951 | -5/Upper Caves | Identified exit to Upper Caves 13379 | -5/Upper Caves | Build established: Hacker-Mutant 13456 | -5/Upper Caves | Entered another Upper Caves area 13456 | -5/Upper Caves | Accompanied by 2 allies 13520 | -5/Upper Caves | Attracted the attention of an 0b10 checkpoint 13541 | -5/Upper Caves | Spotted B-75 Beast 13543 | -5/Upper Caves | Destroyed B-75 Beast 13602 | -5/Upper Caves | Learned Factory terminal intel 13615 | -5/Upper Caves | Encountered a Warlord checkpoint 13626 | -5/Upper Caves | Learned Factory stockpile data 13629 | -5/Upper Caves | Attacked by a delusional Derelict stockpiling Unaware 13708 | -5/Upper Caves | Attracted the attention of an 0b10 base 13732 | -5/Upper Caves | Destroyed 12 combat bots 13926 | -5/Upper Caves | Entered Warlord 13926 | -5/Warlord | Accompanied by 6 allies 13939 | -5/Warlord | System corruption cleaned by Quarantine Array 13948 | -5/Warlord | Build established: Commander-Mutant 13966 | -5/Warlord | Attacked by Warlord forces 13980 | -5/Warlord | Discovered new exit (range 15) 14002 | -5/Warlord | Spotted DD-RFU(B) 14002 | -5/Warlord | Spotted JO-QBE(B) 14025 | -5/Warlord | Allies destroyed DD-RFU(B) 14027 | -5/Warlord | Destroyed JO-QBE(B) 14047 | -5/Warlord | Found Prototype Ballistic Cannon 14047 | -5/Warlord | Identified Hvy. Autocannon 14064 | -5/Warlord | Lost 4 allies 14139 | -5/Warlord | Warlord's base attacked by MAIN.C 14156 | -5/Warlord | Learned 4 Research zone layouts 14157 | -5/Warlord | Learned Factory scanalyzer intel 14157 | -5/Warlord | Learned Research repair station intel 14157 | -5/Warlord | Learned Testing trap positions 14361 | -5/Warlord | Destroyed 46 combat bots 14379 | -5/Warlord | Spotted VE-HMY(g) 14383 | -5/Warlord | Destroyed VE-HMY(g) 14387 | -5/Warlord | Build established: Hacker-Gunner 14419 | -5/Warlord | Spotted XS-IR1(K) 14430 | -5/Warlord | Spotted OZ-XRD(K) 14445 | -5/Warlord | Destroyed XS-IR1(K) 14459 | -5/Warlord | Destroyed OZ-XRD(K) 14464 | -5/Warlord | Found Unknown Protection 14464 | -5/Warlord | Identified Hvy. Reflective Plating 14489 | -5/Warlord | Warlord forces counterattacked 14504 | -5/Warlord | Destroyed Warlord 14552 | -5/Warlord | Found Prototype Processor 14552 | -5/Warlord | Identified Exp. Targeting Computer 14579 | -5/Warlord | Found Prototype Special Weapon 14579 | -5/Warlord | Identified RU-N14's Throwing Claymores v3 14583 | -5/Warlord | Found RU-N14's Throwing Claymores v3 14584 | -5/Warlord | Found RU-N14's Throwing Claymores v3 14586 | -5/Warlord | Found RU-N14's Throwing Claymores v3 14597 | -5/Warlord | Destroyed Fake God Mode 14645 | -5/Warlord | Found Prototype Energy Gun 14645 | -5/Warlord | Identified Vortex Rifle 14647 | -5/Warlord | Found Prototype Energy Cannon 14647 | -5/Warlord | Identified Vortex Cannon 14651 | -5/Warlord | Found Prototype Launcher 14651 | -5/Warlord | Identified Vortex Catalyst Activator 14666 | -5/Warlord | Spotted Executioner 14688 | -5/Warlord | Destroyed Executioner 14738 | -5/Warlord | Destroyed 11 combat bots 14740 | -5/Warlord | Spotted Striker 14754 | -5/Warlord | Destroyed Striker 14794 | -5/Warlord | Spotted Executioner 14804 | -5/Warlord | Reached level 25 14814 | -5/Warlord | Warlord base infiltrated, sounded retreat 14815 | -5/Warlord | Destroyed Executioner 14842 | -5/Warlord | Spotted Striker 14871 | -5/Warlord | Destroyed 24 combat bots 14877 | -5/Warlord | Destroyed Striker 14943 | -5/Warlord | Destroyed by H-66 Slayer with Gauss Rifle Last Messages --------------- 14929_ Destroyed Lgt. Angular Momentum Engine. 14929_ G-50 Soldier destroyed. 14932_ Slug penetrates Machine. 14932_ Machine disabled. 14932_ Penetrated by Slug. 14932_ G-67 Veteran destroyed. 14933_ H-77 Assassin destroyed. 14936_ Overheating: System interference. 14936_ Quantum Capacitor temporarily disabled. 14936_ Arm. Scrap Engine temporarily disabled. 14937_ Acquired 30 matter. 14938_ G-50 Soldier destroyed. 14939_ Acquired 2 matter. 14939_ ANNOUNCEMENT: Detected 1 Grunt squad, 1 Saboteur squad, 1 Hunter squad, 1 Programmer squad, with prototype support. 14940_ Penetrated by Slug. 14940_ L-41 Fighter destroyed. 14941_ System corrupted: Energy discharge (-64). 14942_ G-67 Veteran destroyed. Map ----- +----------------------------------------------------+ | !=! *[!= != ^=[= ###########???????????????# | | #####/##### ^ "" ""%%*# #???????????????## | | !!=%%* # *"""""[* # #???????????????# | | ! [=!![!%# """""[ !# """"#???????????????" | | ! [![*] # != [[ = # """"#??????????????## | | ! [ ! # * [ + """"#??????????????#%= | | # = # """"#???##########?## | | ################### ### ##### #### | | ????????###########*###%= ## ## " =! | | ????????# # ##"#######" ####% | | ????????# # %%%%! =! #??#% | | ????????# + !![%= %% #??# | | ????????# ## !|%%* = *[ #### | | ????????######## * ### !%!=!=! + | | ???????????????## [%##?# # =![# #### | | ??????????????### =#??# %!=====# #??# | | ?????????????## # #??# # " ! #%############# | | ?????????????#X # #### %## ##%#???# ## | | ?????????????" # # %! #*%#???# """" ##% | | ?????????????" # # ##/###?# """"=## | | ?????????????" # %[# """ " *%! #?# """"=#" | | ?????????????# + [** " "" " # ! #?# """"==#* | | ?????????????## #%%%# # #?#=*===%#* | | ??????????????### !=############## #######%##*/ | | ???????????????#X =############## "===!=%=%%== | | ???????????????## %##"""@!*""""## #[#!#%#/=#+% | | ????????????????# [%##"""%%%""""## #*###[=[=%[! | | ????????????????# =##""""=[""""## # #?#![""""" | | ????????????????# ##""""]==" "## # #?#[ """"" | | ????????????????# ##"*![]*h=*"####### #?# """"" | | ????????????????# ##"[**=%!%/"##!! + #?# | | ????????????????# ##" [[== " ## # #?# """"" | | ????????????????# ## =! ""## #=### """"" | | ????????????????# ## % ""##!! # ## """"" | | ????????????????# =## ""#######=### ?? | | ????????????????# !%## ""#?????# #?####???# | | ????????????????# %+ """""""#?????# ????????? | | ????????????????# + """"""""#?????###????????? | | ????????????????#################????????????????? | | ?????????????????????????????????????????????????? | | ?????????????????????????????????????????????????? | | ?????????????????????????????????????????????????? | | ?????????????????????????????????????????????????? | | | | | | | | | | | | | | | +----------------------------------------------------+ Best States ------------- Heat Dissipation 115 Energy Generation 38 Energy Capacity 740 Matter Stores 400 Matter Capacity 400 Sight Range 16 Terrain Scan Range 16 Terrain Scan Density 10 Additional Mass Support 9 Armor Coverage 600 Resistance: TH 25 Weapon Cycling 25 Phase Shifting 10 Evasion (%) 68 Armor Integrity Analysis 40 Kinecelleration 30 Salvage Targeting 4 Offensive Hacking 15 Defensive Hacking 10 Item Schematics ----------------- Rocket Launcher | -9/Materials | Extracted Med. Laser | -9/Materials | Extracted EM Shotgun | -9/Materials | Extracted Maul | -9/Materials | Extracted Field Recycling Unit | -9/Materials | Extracted Signal Interpreter | -9/Materials | Extracted System Shield | -8/Materials | Extracted Enh. Autogun | -7/Factory | Hacked Imp. Light Armor Plating | -7/Factory | Extracted Adv. Weight Redist. System | -7/Factory | Extracted Shock Absorption System | -7/Factory | Extracted Imp. Medium Armor Plating | -7/Factory | Extracted Kinecellerator | -7/Factory | Extracted Trap Scanner | -7/Factory | Extracted Hvy. Deuterium Engine | -7/Factory | Extracted Transmission Jammer | -7/Factory | Extracted Target Analyzer | -7/Factory | Extracted Med. Reactive Plating | -7/Factory | Extracted Quantum Capacitor | -5/Factory | Hacked Robot Schematics ------------------ None Fabricated ------------ Enh. Autogun | x1 | -7/Factory Enh. Autogun | x1 | -7/Factory Enh. Autogun | x1 | -7/Factory Enh. Autogun | x1 | -7/Factory Enh. Autogun | x1 | -7/Factory Quantum Capacitor | x2 | -5/Factory Repaired ---------- Nothing Studied --------- None Alien Tech Used ----------------- None Achievements -------------- None Challenges ------------ None RPGLIKE | -11 -10 -10 -9 -9 -9 -8 -8 -7 -7 -7 -7 -7 -5 -5 -5 -5 --------- Run | Yrd Mat Min Mat Min Exi Min Mat Fac Was Fac Sto Rec Fac Upp Upp War Levels Raised 24 | . 3 1 4 . . 2 2 3 . 1 1 . 6 . . 1 XP Earned 39274 | 3000 4833 1200 6393 710 169 2000 3665 4189 71 1802 911 318 8473 195 439 906 XP Spent 37325 | 2960 800 4840 6100 . 200 2925 3100 4500 . 1100 1250 . 9410 . . 140 Upgrades 63 | 10 1 11 7 . 1 3 6 5 . 1 1 . 15 . . 2 Power Slot 1 | . . . 1 . . . . . . . . . . . . . Propulsion Slot 4 | 1 . 1 . . . . 1 . . . . . 1 . . . Utility Slot 8 | 1 1 1 2 . . 1 . 1 . . . . 1 . . . Weapon Slot 3 | 1 . . 1 . . . . . . 1 . . . . . . Core Integrity 6 | . . . . . . . . . . . . . 4 . . 2 Heat Dissipation 15 | 3 . 7 . . . . . . . . . . 5 . . . Energy Generation 1 | . . . . . . . 1 . . . . . . . . . Matter Storage 2 | . . . . . 1 1 . . . . . . . . . . Mass Support 3 | 1 . . 1 . . . 1 . . . . . . . . . Inventory Capacity 6 | 2 . 2 . . . . . . . . 1 . 1 . . . Ranged Accuracy 6 | 1 . . 2 . . 1 . . . . . . 2 . . . Hack Attack % 3 | . . . . . . . 1 1 . . . . 1 . . . Hack Defense % 2 | . . . . . . . 1 1 . . . . . . . . KI Damage % 3 | . . . . . . . 1 2 . . . . . . . . Protomatter Created 11177 | . 398 72 724 111 7 190 779 691 . 510 955 107 3603 270 308 2452 Integrity Restored 12837 | . 850 171 1099 171 27 408 773 642 72 695 1158 271 3909 129 213 2249 Core 10232 | . 790 171 891 120 27 408 515 422 49 621 665 219 3264 101 170 1799 Parts 2605 | . 60 . 208 51 . . 258 220 23 74 493 52 645 28 43 450 Protomatter Decayed 5400 | . 9 . 255 50 12 . 375 421 326 317 493 12 1294 250 55 1531 Game ------ Seed ConcussivePhasingMinigun Manual? 0 Play Time 02:49:30 Cumulative 506.8 hours Start 2025.12.21 @ 19:32:20 End 2025.12.22 @ 13:11:53 Sessions 3 Manual Loads 0 Difficulty Rogue Special Mode Winter2019/RPGLIKE Game No. 189 Rogue 35 Adventurer 154 Explorer 0 Win Type - Total 20 Types 4/4/3/3/2/1/0/1/1/1 Lore% 94 Gallery% 86 Achievement% 61 Wizard Run 0 Options --------- Layout 2 ASCII 0 Keyboard 0 Movement Numpad Keybinds 0 Fullscreen 2 Font 24/Smallcaps Map View 50x44 Zoom Use 0% Tactical HUD 1 Map Filters NONE Filters NONE Steam 1 RUN: c7cf9f10-fbe9-44d7-b38a-decb86a7b1a0